bitfinex-derivatives/quotes_ETHF0:USTF0_20250115
["timestamp","ask_amount","ask_price","bid_price","bid_amount"]
[1736980795253,2.32453306,3427.6,3427.3,5.56878873]
[1736980795458,0.58346,3427.6,3427.5,5.25085873]
[1736980795656,3.2078,3427.8,3427.5,4.66738873]
[1736980795865,0.58345,3427.7,3427.6,0.58345]
[1736980796265,0.58345,3427.7,3427.6,5.25083873]
[1736980800262,0.58345,3427.7,3427.6,4.66738873]
[1736980800463,0.5835,3427.4,3427.3,0.9014]
[1736980800663,0.58358,3426.9,3426.8,0.4699]
[1736980800865,0.5835,3427.4,3427.3,4.66738873]
[1736980801059,2.32453306,3427.7,3427.3,4.66738873]
[1736980801361,2.90798306,3427.7,3427.6,4.66738873]
[1736980801959,0.58345,3427.7,3427.6,4.66738873]
[1736980802160,0.58344,3427.8,3427.6,5.25083873]
[1736980802360,0.58344,3427.8,3427.7,0.4699]
[1736980802967,0.58344,3427.8,3427.7,1.05335]
[1736980803259,2.77393306,3428.0,3427.7,0.4699]
[1736980803260,2.32453306,3428.0,3427.7,0.4699]
[1736980803561,0.5834,3428.0,3427.9,5.25078873]
[1736980804662,0.5834,3428.0,3427.9,4.66738873]
[1736980805669,0.5834,3428.0,3427.9,5.25079873]
[1736980806174,0.5834,3428.0,3427.9,4.66738873]
[1736980806772,2.32453306,3428.3,3427.9,5.25079873]
[1736980806973,2.32453306,3428.3,3428.2,4.66738873]
[1736980807170,2.90787306,3428.3,3428.2,4.66738873]
[1736980808473,3.2078,3429.3,3428.2,10.62352827]
[1736980808764,3.20943306,3429.7,3429.2,4.66738873]
[1736980808964,3.20943306,3429.7,3429.4,0.58315]
[1736980808965,3.79255306,3429.7,3429.4,0.58315]
[1736980809265,3.79255306,3429.7,3429.6,4.66738873]
[1736980809966,3.2078,3430.0,3429.6,4.66738873]
[1736980810171,2.32453306,3430.3,3429.9,4.66738873]
[1736980810373,0.58302,3430.2,3429.9,5.25044873]
[1736980810764,2.32453306,3430.3,3430.0,0.58306]
[1736980810966,2.90754306,3430.3,3430.0,0.58306]
[1736980811172,2.90754306,3430.3,3429.9,0.58306]
[1736980811367,2.90754306,3430.3,3429.9,5.25044873]
[1736980811672,2.32453306,3430.3,3429.9,5.25044873]
[1736980811867,2.32453306,3430.3,3429.9,4.66738873]
[1736980812066,0.58304,3430.1,3429.9,4.66738873]
[1736980812464,2.32453306,3430.6,3430.0,4.66738873]
[1736980812669,0.4575,3430.5,3430.0,4.66738873]
[1736980812973,0.58304,3430.1,3430.0,4.66738873]
[1736980814171,1.45758,3430.2,3429.3,0.58316]
[1736980814367,6.99000306,3430.0,3429.6,4.66738873]
[1736980814575,0.58311,3429.7,3429.6,4.66738873]
[1736980814770,0.58317,3429.3,3429.2,3.2078]
[1736980815272,0.58317,3429.3,3429.2,7.87518873]
[1736980815867,1.04717,3429.3,3429.2,7.87518873]
[1736980818768,0.464,3429.3,3428.7,0.4657]
[1736980818977,0.464,3429.3,3429.1,4.66738873]
[1736980819274,0.58321,3429.1,3429.0,4.66738873]
[1736980821176,0.58327,3428.8,3428.6,3.79108]
[1736980821480,0.58323,3429.0,3428.9,4.66738873]
[1736980825173,0.58325,3428.9,3428.7,0.58328]
[1736980825571,0.58325,3428.9,3428.8,4.66738873]
[1736980831281,0.58325,3428.9,3428.8,5.25064873]
[1736980840279,0.58325,3428.9,3428.8,5.70364873]
[1736980842485,0.58325,3428.9,3428.8,5.25064873]
[1736980842782,0.58325,3428.9,3428.8,4.66738873]
[1736980842983,0.58325,3428.9,3428.8,5.25064873]
[1736980843580,0.58325,3428.9,3428.8,4.66738873]
[1736980843886,0.58325,3428.9,3428.8,5.25064873]
[1736980845281,0.58325,3428.9,3428.8,4.66738873]
[1736980846182,0.58325,3428.9,3428.8,5.25064873]
[1736980846990,0.58325,3428.9,3428.8,4.66738873]
[1736980850697,0.58325,3428.9,3428.8,5.25064873]
[1736980854993,0.464,3429.3,3428.8,4.66738873]
[1736980855190,0.58323,3429.0,3428.9,0.58322]
[1736980855591,0.58323,3429.0,3428.9,5.25060873]
[1736980860289,0.58323,3429.0,3428.9,4.66738873]
[1736980860495,0.58323,3429.0,3428.9,5.25062873]
[1736980860888,0.58323,3429.0,3428.9,4.66738873]
[1736980864811,0.58323,3429.0,3428.9,5.25062873]
[1736980869118,0.58323,3429.0,3428.9,4.66738873]
[1736980870210,0.58323,3429.0,3428.9,5.25062873]
[1736980871005,0.58323,3429.0,3428.9,4.66738873]
[1736980871519,0.58323,3429.0,3428.9,5.25062873]
[1736980872614,0.58314,3429.5,3429.4,0.58314]
[1736980872814,0.4776,3430.2,3429.4,4.66738873]
[1736980873010,3.2078,3430.6,3430.5,4.66738873]
[1736980873214,4.22893177,3430.6,3430.3,4.66738873]
[1736980873410,1.45756,3430.2,3430.0,4.66738873]
[1736980873622,2.05217177,3430.1,3430.0,45.46738873]
[1736980873818,2.51587177,3430.1,3430.0,45.46738873]
[1736980874120,2.51587177,3430.1,3430.0,4.66738873]
[1736980874320,2.95357177,3430.1,3430.0,4.66738873]
[1736980874818,2.50557177,3430.1,3430.0,4.66738873]
[1736980875319,0.58309,3429.8,3429.7,3.2078]
[1736980875520,1.60422177,3429.8,3429.7,3.2078]
[1736980875713,1.60422177,3429.8,3429.7,7.87518873]
[1736980875914,1.60422177,3429.8,3429.7,4.66738873]
[1736980876520,2.08792177,3429.8,3429.7,4.66738873]
[1736980877522,1.06679,3429.8,3429.7,4.66738873]
[1736980880017,0.58309,3429.8,3429.7,4.66738873]
[1736980885118,1.45766,3430.0,3429.6,0.4786]
[1736980885318,0.58311,3429.7,3429.6,0.4786]
[1736980885728,0.58311,3429.7,3429.6,5.72910873]
[1736980886529,0.58311,3429.7,3429.6,5.14598873]
[1736980887422,0.58311,3429.7,3429.6,5.72910873]
[1736980887621,0.58311,3429.7,3429.6,5.14598873]
[1736980888124,0.58311,3429.7,3429.6,5.72910873]
[1736980889023,1.45743,3430.6,3429.6,0.4786]
[1736980889327,0.58296,3430.6,3430.5,3.2078]
[1736980889631,0.58296,3430.6,3430.5,44.0078]
[1736980889834,0.58296,3430.6,3430.5,3.2078]
[1736980890226,0.58302,3430.2,3430.1,4.1577]
[1736980891234,0.58302,3430.2,3430.1,3.2078]
[1736980895431,0.58302,3430.2,3430.1,3.79084]
[1736980901838,0.58301,3430.4,3430.3,0.58299]
[1736980902136,1.60342728,3430.4,3430.3,0.58299]
[1736980902539,0.4716,3430.7,3430.1,3.2078]
[1736980902740,0.58297,3430.6,3430.5,0.58295]
[1736980902928,1.49201728,3430.7,3430.3,0.4614]
[1736980903136,0.58299,3430.5,3430.4,0.58298]
[1736980903635,1.60340728,3430.5,3430.4,0.58298]
[1736980908937,0.58299,3430.5,3430.4,0.58298]
[1736980909137,0.58299,3430.5,3430.3,0.4628]
[1736980909138,1.49201728,3430.7,3430.3,0.4628]
[1736980909440,0.58297,3430.6,3430.5,0.58296]
[1736980910237,1.49201728,3430.7,3430.3,0.4628]
[1736980910438,0.58299,3430.5,3430.4,0.58298]
[1736980910942,1.49201728,3430.7,3430.3,0.4628]
[1736980911136,0.58297,3430.6,3430.5,3.79076]
[1736980911338,0.58297,3430.6,3430.5,3.2078]
[1736980911542,0.58297,3430.6,3430.5,3.79077]
[1736980912442,0.58297,3430.6,3430.5,3.2078]
[1736980912843,0.58297,3430.6,3430.5,3.79077]
[1736980913052,0.58297,3430.6,3430.5,3.2078]
[1736980915944,0.58297,3430.6,3430.5,3.79077]
[1736980916741,0.58297,3430.6,3430.5,3.2078]
[1736980917941,0.58297,3430.6,3430.5,3.79077]
[1736980919448,0.58297,3430.6,3430.5,3.2078]
[1736980919646,1.05454,3430.7,3430.6,0.58295]
[1736980920348,0.58295,3430.6,3430.5,3.79076]
[1736980925851,1.05454,3430.7,3430.6,0.58295]
[1736980926057,1.05454,3430.7,3430.6,1.60336728]
[1736980926953,0.4716,3430.7,3430.6,1.60336728]
[1736980927845,1.05454,3430.7,3430.6,1.60336728]
[1736980928046,0.4716,3430.7,3430.6,1.60336728]
[1736980928847,0.4716,3430.7,3430.6,2.08156728]
[1736980933254,0.4716,3430.7,3430.6,2.17269306]
[1736980933554,0.4716,3430.7,3430.6,2.08156728]
[1736980933948,0.4716,3430.7,3430.6,2.17269353]
[1736980934348,0.4716,3430.7,3430.6,2.08156728]
[1736980936858,0.4716,3430.7,3430.6,0.58295]
[1736980937052,1.05454,3430.7,3430.6,0.58295]
[1736980940558,1.05454,3430.7,3430.6,1.06225]
[1736980942660,1.05454,3430.7,3430.6,0.58295]
[1736980947559,0.4716,3430.7,3430.6,0.58295]
[1736980948170,0.4716,3430.7,3430.6,0.67407911]
[1736980948655,0.4716,3430.7,3430.6,1.69449639]
[1736980949355,0.4716,3430.7,3430.6,4.90229639]
[1736980950264,0.4716,3430.7,3430.6,4.90229465]
[1736980951164,0.4716,3430.7,3430.6,1.69449465]
[1736980951363,0.4716,3430.7,3430.6,4.90229465]
[1736980951562,0.4716,3430.7,3430.6,4.81116728]
[1736980962471,0.4766,3430.8,3430.7,0.58294]
[1736980966478,1.05952,3430.8,3430.7,0.58294]
[1736980966774,0.4766,3430.8,3430.7,0.58294]
[1736980967169,1.05952,3430.8,3430.7,0.58294]
[1736980967672,0.4766,3430.8,3430.7,0.58294]
[1736980970386,0.4766,3430.8,3430.7,3.79074]
[1736980971983,1.05952,3430.8,3430.7,3.79074]
[1736980972289,0.4766,3430.8,3430.7,3.79074]
[1736980973887,1.05952,3430.8,3430.7,3.79074]
[1736980974286,0.4766,3430.8,3430.7,3.79074]
[1736980987394,0.4766,3430.8,3430.7,0.58294]
[1736980987592,0.4766,3430.8,3430.7,3.79074]
[1736980989191,0.4766,3430.8,3430.7,0.58294]
[1736980989597,0.4766,3430.8,3430.7,3.79074]
[1736980998007,0.4766,3430.8,3430.7,0.58294]
[1736980998399,0.4766,3430.8,3430.7,3.79074]
[1736981001713,0.4766,3430.8,3430.7,4.25134]
[1736981003508,1.05952,3430.8,3430.7,4.25134]
[1736981004711,1.90125,3431.2,3430.7,3.6684]
[1736981005008,0.58291,3431.0,3430.9,0.58287]
[1736981005208,0.58291,3431.0,3430.9,41.38287]
[1736981007411,0.58291,3431.0,3430.9,0.58287]
[1736981016728,0.58291,3431.0,3430.9,3.79067]
[1736981020526,0.58291,3431.0,3430.9,4.81108728]
[1736981027829,0.58291,3431.0,3430.9,3.79067]
[1736981051443,0.58291,3431.0,3430.9,3.2078]
[1736981058141,0.58291,3431.0,3430.9,3.7907]
[1736981059949,0.58291,3431.0,3430.9,3.2078]
[1736981061142,0.58291,3431.0,3430.9,3.7907]
[1736981072346,0.58291,3431.0,3430.9,0.5829]
[1736981072551,0.58291,3431.0,3430.9,3.7907]
[1736981075553,0.58291,3431.0,3430.9,4.81111728]
[1736981078850,0.58291,3431.0,3430.9,3.7907]
[1736981088168,0.58291,3431.0,3430.9,0.5829]
[1736981088364,0.58291,3431.0,3430.9,3.7907]
[1736981101079,0.4516,3431.3,3430.9,3.7907]
[1736981101375,0.58287,3431.2,3431.1,0.58285]
[1736981101776,0.58287,3431.2,3431.1,0.67396999]
[1736981102080,0.58287,3431.2,3431.1,0.67397108]
[1736981102885,0.58287,3431.2,3431.1,0.67397058]
[1736981103783,0.58287,3431.2,3431.1,0.58285]
[1736981119191,0.58287,3431.2,3431.1,3.79065]
[1736981126904,0.58287,3431.2,3431.1,3.2078]
[1736981128197,0.58287,3431.2,3430.7,3.2078]
[1736981128396,0.58292,3430.8,3430.7,3.2078]
[1736981130599,1.60333728,3430.8,3430.7,3.2078]
[1736981130806,1.02041728,3430.8,3430.3,4.22821728]
[1736981131005,0.58299,3430.4,3430.3,4.81121728]
[1736981131706,0.58299,3430.4,3429.9,3.79087]
[1736981131707,1.02041728,3430.4,3429.9,3.79087]
[1736981131896,0.58306,3430.0,3429.9,3.2078]
[1736981132097,1.60347728,3430.0,3429.9,3.2078]
[1736981132301,1.60347728,3430.0,3429.9,44.0078]
[1736981132894,1.60347728,3430.0,3429.9,3.2078]
[1736981133299,1.02041728,3430.0,3429.5,41.82041728]
[1736981133502,0.58312,3429.6,3429.5,41.82041728]
[1736981133799,0.58314,3429.5,3429.4,3.2078]
[1736981134102,1.04884,3429.5,3429.4,3.2078]
[1736981135104,1.98214,3429.5,3429.4,3.2078]
[1736981146005,0.58314,3429.5,3429.4,3.79096]
[1736981146208,1.02041728,3429.8,3429.4,4.23506]
[1736981146403,0.58314,3429.5,3429.4,4.23506]
[1736981146610,0.58314,3429.6,3429.4,4.23505]
[1736981146817,3.2078,3430.0,3429.6,1.02041728]
[1736981147114,3.2078,3430.0,3429.8,1.02041728]
[1736981147315,3.2078,3430.0,3429.9,0.4459]
[1736981147514,3.2078,3430.0,3429.9,0.9301]
[1736981147705,3.79086,3430.0,3429.9,1.51317]
[1736981147909,0.58306,3430.0,3429.9,1.51317]
[1736981149613,0.58306,3430.0,3429.9,0.9301]
[1736981150804,0.58306,3430.0,3429.9,1.51317]
[1736981151017,0.58305,3430.1,3430.0,0.58305]
[1736981151313,0.58305,3430.1,3430.0,0.4409]
[1736981156918,0.58305,3430.1,3430.0,1.46131728]
[1736981157216,0.58305,3430.1,3430.0,0.4409]
[1736981159419,1.02041728,3430.2,3429.9,0.4842]
[1736981159625,1.06435,3430.0,3429.9,0.4842]
[1736981164825,0.4813,3430.0,3429.6,0.4502]
[1736981165020,0.58311,3429.7,3429.6,0.4502]
[1736981168030,0.5831,3429.8,3429.6,1.03331]
[1736981168423,0.58308,3429.9,3429.6,0.4502]
[1736981168729,0.4813,3430.0,3429.7,41.3831]
[1736981168926,0.58309,3429.8,3429.7,41.3831]
[1736981169427,0.58308,3429.9,3429.7,0.5831]
[1736981169629,0.58309,3429.8,3429.7,3.7909]
[1736981169831,0.58307,3429.9,3429.8,0.58309]
[1736981170026,0.58307,3429.9,3429.7,44.5909]
[1736981170636,0.58307,3429.9,3429.7,3.7909]
[1736981171234,0.4456,3430.2,3429.7,3.2078]
[1736981171435,0.58309,3429.8,3429.7,3.2078]
[1736981172336,0.58309,3429.8,3429.7,3.79091]
[1736981173341,0.58307,3430.0,3429.8,0.58307]
[1736981173646,0.58307,3430.0,3429.9,0.9502]
[1736981173938,1.91451728,3430.4,3429.9,1.53327]
[1736981174136,0.58305,3430.0,3429.9,1.53327]
[1736981176445,0.58305,3430.0,3429.9,0.9502]
[1736981177145,0.58305,3430.0,3429.9,1.53327]
[1736981179645,0.58305,3430.0,3429.9,0.9502]
[1736981181446,0.58305,3430.0,3429.9,1.53327]
[1736981182847,0.58305,3430.0,3429.9,0.9502]
[1736981184448,1.02041728,3430.1,3429.7,3.2078]
[1736981184649,0.58309,3429.8,3429.7,3.2078]
[1736981187748,0.58309,3429.8,3429.7,4.22821728]
[1736981187953,0.58309,3429.8,3429.7,4.81132728]
[1736981190044,0.58309,3429.8,3429.7,3.79091]
[1736981191553,2.37405,3430.3,3429.7,3.2078]
[1736981191755,0.58308,3429.9,3429.8,1.49658]
[1736981196150,1.162,3430.6,3429.8,1.49658]
[1736981196151,13.66054726,3432.2,3429.9,0.5]
[1736981196452,13.66054726,3432.2,3432.1,0.5827]
[1736981196644,13.66054726,3432.2,3432.1,45.61091728]
[1736981197050,13.66054726,3432.2,3432.1,50.61091728]
[1736981197356,8.9206103,3432.2,3432.1,51.51951728]
[1736981197555,4.22821728,3434.0,3432.1,51.51951728]
[1736981197556,3.2078,3434.0,3433.4,0.58248]
[1736981197748,3.2078,3434.0,3433.2,4.22821728]
[1736981198349,3.2078,3434.0,3433.5,1.02041728]
[1736981198656,0.9265,3434.3,3433.7,3.79021]
[1736981198851,0.9265,3434.3,3433.7,3.2078]
[1736981199356,1.50883,3434.3,3433.7,3.79022]
[1736981199551,0.9265,3434.3,3433.7,3.2078]
[1736981199752,0.9265,3434.3,3433.8,0.58241]
[1736981200058,1.50884,3434.3,3433.7,3.79023]
[1736981200357,0.58235,3434.2,3433.7,3.79022]
[1736981200656,1.50883,3434.3,3433.8,0.58241]
[1736981201458,0.58234,3434.2,3433.8,0.58241]
[1736981201956,1.50883,3434.3,3433.8,0.58241]
[1736981202553,1.50883,3434.3,3433.7,3.2078]
[1736981202755,1.50883,3434.3,3433.9,0.58239]
[1736981203652,4.47483,3434.3,3433.9,0.58239]
[1736981204559,3.8925,3434.3,3433.9,0.58239]
[1736981207356,3.8925,3434.3,3434.0,0.58237]
[1736981208357,0.00316005,3434.1,3433.9,0.58238]
[1736981210961,0.00316005,3434.1,3433.8,0.58241]
[1736981211654,0.00316005,3434.1,3433.8,0.5824]
[1736981211859,0.00316005,3434.1,3433.9,0.58239]
[1736981212658,0.00316005,3434.1,3434.0,0.58238]
[1736981216857,0.00316005,3434.1,3433.7,3.2078]
[1736981216858,0.5824,3433.9,3433.7,3.2078]
[1736981217066,0.9121,3433.8,3433.7,3.2078]
[1736981217254,1.49451,3433.8,3433.7,3.2078]
[1736981217659,1.49451,3433.8,3433.7,2.4816]
[1736981218365,0.9121,3433.8,3433.1,44.0078]
[1736981218662,0.58243,3433.7,3433.5,0.58246]
[1736981218860,0.58243,3433.7,3433.1,44.0078]
[1736981219060,1.49452,3433.8,3433.5,0.58246]
[1736981219670,0.58244,3433.7,3433.4,0.58247]
[1736981219864,0.58249,3433.4,3433.2,0.5825]
[1736981220061,0.58247,3433.5,3433.2,0.5825]
[1736981220262,0.9121,3433.8,3433.1,44.0078]
[1736981220462,0.5825,3433.3,3433.1,44.59033]
[1736981220661,0.9121,3433.8,3433.1,44.0078]
[1736981220861,0.58251,3433.2,3433.1,3.2078]
[1736981222069,3.2078,3433.2,3432.4,0.31519554]
[1736981222266,3.2078,3432.8,3432.5,40.8]
[1736981222767,0.58261,3432.6,3432.5,40.8]
[1736981223264,0.58263,3432.5,3432.2,3.79047]
[1736981223469,0.58262,3432.6,3432.3,0.58265]
[1736981223676,0.58262,3432.6,3432.3,41.38265]
[1736981224166,0.58262,3432.6,3432.3,0.58265]
[1736981224762,0.58262,3432.6,3432.4,0.0910835]
[1736981224965,0.58262,3432.6,3432.3,0.58265]
[1736981225270,0.58262,3432.6,3432.4,0.23681981]
[1736981225568,3.2078,3432.8,3432.5,0.09108386]
[1736981225762,3.2078,3432.8,3432.3,0.58265]
[1736981225963,0.58263,3432.6,3432.4,0.09108386]
[1736981226158,0.58263,3432.6,3432.4,0.58264]
[1736981226363,0.58263,3432.6,3432.5,0.44668055]
[1736981226571,0.58263,3432.6,3432.5,0.59240905]
[1736981226777,0.58263,3432.6,3432.5,0.59241022]
[1736981227273,0.58255,3433.0,3432.5,1.17503022]
[1736981227473,0.58255,3433.0,3432.6,0.44668055]
[1736981227770,0.58258,3432.8,3432.5,0.58262]
[1736981227966,0.457,3433.1,3432.6,0.44661806]
[1736981228171,0.58257,3432.9,3432.6,0.5826]
[1736981228475,0.58257,3432.9,3432.7,0.58259]
[1736981228974,0.58255,3433.0,3432.8,0.4606]
[1736981229271,3.2078,3433.2,3432.6,0.5826]
[1736981229573,0.58257,3432.9,3432.6,0.5826]
[1736981231262,3.2078,3433.2,3432.2,3.2078]
[1736981231463,3.79031,3433.2,3432.9,0.58255]
[1736981231663,3.2078,3433.2,3433.0,0.58255]
[1736981231872,3.79031,3433.2,3433.1,40.8]
[1736981232073,3.2078,3433.2,3433.1,40.8]
[1736981232372,0.58255,3433.0,3432.7,0.58258]
[1736981232676,0.58255,3433.0,3432.8,40.8]
[1736981233775,0.58256,3432.9,3432.8,40.8]
[1736981235170,3.2078,3433.2,3432.4,0.4525]
[1736981235377,0.58253,3433.1,3433.0,0.58254]
[1736981235565,3.2078,3433.6,3433.1,0.58252]
[1736981235566,0.58252,3433.2,3433.1,0.58252]
[1736981236868,0.58251,3433.2,3433.1,0.58252]
[1736981239775,0.5825,3433.3,3433.2,0.5825]
[1736981239977,0.5825,3433.3,3433.2,41.3825]
[1736981240873,3.2078,3433.6,3433.5,0.58246]
[1736981241080,0.58243,3433.7,3433.6,0.58243]
[1736981241476,2.89851537,3433.8,3433.6,0.58243]
[1736981241674,2.89851537,3433.8,3433.7,0.4464]
[1736981241978,2.89851537,3433.8,3433.7,1.02883]
[1736981242678,2.89851537,3433.8,3433.7,0.4464]
[1736981250080,0.58242,3433.8,3433.7,0.4464]
[1736981251779,3.79022,3433.8,3433.7,0.4464]
[1736981254879,3.64654,3433.8,3433.7,0.4464]
[1736981259791,0.00316005,3434.1,3433.7,0.4464]
[1736981259792,0.58239,3434.0,3433.8,0.5824]
[1736981260292,0.58239,3434.0,3433.8,41.3824]
[1736981260792,0.58239,3434.0,3433.8,40.8]
[1736981261090,0.58239,3434.0,3433.8,41.3824]
[1736981262492,0.58239,3434.0,3433.8,0.5824]
[1736981263286,0.06776405,3434.0,3433.7,41.2464]
[1736981263589,0.06776405,3434.0,3433.8,0.5824]
[1736981263590,0.65015405,3434.0,3433.8,0.5824]
[1736981264089,0.65015405,3434.0,3433.9,40.8]
[1736981264690,0.65015405,3434.0,3433.8,0.5824]
[1736981265891,0.06776405,3434.0,3433.8,0.5824]
[1736981266085,0.58239,3433.9,3433.8,0.5824]
[1736981266391,0.58239,3433.9,3433.8,0.93902643]
[1736981267094,0.58239,3433.9,3433.8,0.93904812]
[1736981268496,0.58239,3433.9,3433.8,41.15663812]
[1736981271000,0.58239,3433.9,3433.8,41.15680277]
[1736981271501,0.50786405,3434.0,3433.8,41.15680277]
[1736981271702,0.58239,3433.9,3433.8,41.3824]
[1736981271998,0.06776405,3434.0,3433.8,41.15679563]
[1736981272199,0.65015405,3434.0,3433.9,0.58239]
[1736981272500,0.65014405,3434.0,3433.9,0.58239]
[1736981272800,0.06776405,3434.0,3433.9,0.58239]
[1736981273498,0.58238,3434.0,3433.9,0.58238]
[1736981274000,0.0709241,3434.1,3433.8,40.8]
[1736981274300,0.6532941,3434.1,3434.0,0.58238]
[1736981274997,0.6532941,3434.1,3433.8,40.8]
[1736981275205,0.6532941,3434.1,3433.9,0.58238]
[1736981275506,0.6532941,3434.1,3434.0,0.58238]
[1736981275694,0.58553005,3434.1,3434.0,0.58238]
[1736981275894,0.58553005,3434.1,3433.9,0.58238]
[1736981276805,0.58239,3433.9,3433.8,41.3824]
[1736981276997,0.58239,3434.0,3433.9,0.58239]
[1736981277308,0.58239,3434.0,3433.9,0.93912979]
[1736981277795,0.58239,3434.0,3433.9,0.93912684]
[1736981278198,0.0709241,3434.1,3433.9,0.35673548]
[1736981278399,0.58239,3433.9,3433.8,41.3824]
[1736981278597,0.58239,3433.9,3433.8,41.7391387]
[1736981279003,0.58239,3434.0,3433.9,0.58238]
[1736981279202,0.58239,3434.0,3433.9,0.9391187]
[1736981279396,0.58239,3434.0,3433.9,0.93913297]
[1736981280800,0.58239,3434.0,3433.9,0.93914822]
[1736981282411,0.58239,3434.0,3433.9,0.35676822]
[1736981284708,0.58546884,3434.0,3433.9,0.35676822]
[1736981286310,0.58545884,3434.0,3433.9,0.3568547]
[1736981286912,0.58239,3433.9,3433.8,0.5824]
[1736981287213,0.58239,3433.9,3433.8,1.03031968]
[1736981288310,0.58239,3433.9,3433.8,1.03036858]
[1736981289109,0.07084289,3434.0,3433.8,0.44796858]
[1736981289413,0.65323289,3434.0,3433.9,1.03035788]
[1736981290216,0.65323289,3434.0,3433.9,1.03038891]
[1736981290715,0.58546884,3434.0,3433.9,1.03038891]
[1736981291717,0.58546884,3434.0,3433.9,1.03038935]
[1736981292208,0.58546884,3434.0,3433.9,1.03038917]
[1736981294329,0.58546884,3434.0,3433.9,1.0303794]
[1736981294724,0.58546884,3434.0,3433.9,1.03037661]
[1736981295327,0.00307884,3434.0,3433.9,1.03037661]
[1736981296327,0.00307884,3434.0,3433.9,1.03037794]
[1736981298023,0.00307884,3434.0,3433.9,0.93933341]
[1736981298428,0.00307884,3434.0,3433.9,1.03037768]
[1736981298930,0.00307884,3434.0,3433.9,0.93933341]
[1736981299130,0.00307884,3434.0,3433.9,1.03037682]
[1736981299522,0.00307884,3434.0,3433.9,0.93933341]
[1736981299932,0.00307884,3434.0,3433.9,1.0303765]
[1736981300132,0.00307884,3434.0,3433.9,1.03037671]
[1736981302636,0.00307884,3434.0,3433.9,1.03032558]
[1736981303534,0.00307884,3434.0,3433.9,0.67342964]
[1736981304127,0.00307884,3434.0,3433.9,0.67343044]
[1736981306731,0.92247884,3434.0,3433.9,0.67343044]
[1736981307839,1.50485884,3434.0,3433.9,0.67343044]
[1736981309937,1.50485884,3434.0,3433.9,0.67343294]
[1736981310440,0.58545884,3434.0,3433.9,0.67343294]
[1736981311134,0.00307884,3434.0,3433.8,0.5824]
[1736981311435,0.44827884,3434.0,3433.9,0.09104603]
[1736981311641,1.03065884,3434.0,3433.9,0.09104603]
[1736981311941,0.58545884,3434.0,3433.9,0.67343488]
[1736981312139,1.03065884,3434.0,3433.9,0.67343488]
[1736981312640,1.03065884,3434.0,3433.9,0.09104488]
[1736981313034,0.58545884,3434.0,3433.9,0.09104488]
[1736981313338,0.58545884,3434.0,3433.9,0.67343488]
[1736981313839,0.58545884,3434.0,3433.9,0.58239]
[1736981314040,0.58545884,3434.0,3433.9,0.09104615]
[1736981314441,0.00307884,3434.0,3433.8,0.5824]
[1736981314640,1.02129,3433.9,3433.8,0.5824]
[1736981314938,0.58239,3433.9,3433.8,0.67344628]
[1736981315138,1.02129,3433.9,3433.8,0.67344628]
[1736981315741,1.02129,3433.9,3433.8,0.5824]
[1736981315942,1.02129,3433.9,3433.8,0.67344549]
[1736981316139,0.4389,3433.9,3433.8,0.67344549]
[1736981317846,1.02129,3433.9,3433.8,0.67344494]
[1736981318646,0.07084289,3434.0,3433.9,0.58239]
[1736981318846,0.07084289,3434.0,3433.9,0.67343494]
[1736981319144,0.58545884,3434.0,3433.9,0.58239]
[1736981320144,0.58545884,3434.0,3433.9,0.67343455]
[1736981320543,0.58545884,3434.0,3433.9,0.58239]
[1736981321152,0.58545884,3434.0,3433.9,0.6734346]
[1736981321448,0.58545884,3434.0,3433.9,0.58239]
[1736981322049,0.58545884,3434.0,3433.9,0.67343416]
[1736981323347,0.58545884,3434.0,3433.9,0.58239]
[1736981324547,0.58545884,3434.0,3433.9,0.67343463]
[1736981326151,0.58545884,3434.0,3433.9,0.67343524]
[1736981328253,1.0213136,3434.0,3433.8,0.5824]
[1736981328458,0.58239,3433.9,3433.8,0.5824]
[1736981328657,0.58239,3433.9,3433.8,0.67344618]
[1736981329160,0.58239,3433.9,3433.8,0.09104618]
[1736981329354,1.0213136,3434.0,3433.7,0.58243]
[1736981329554,0.58241,3433.8,3433.7,0.58243]
[1736981329751,0.58241,3433.8,3433.7,0.67347981]
[1736981329959,1.60064476,3433.8,3433.7,0.67347974]
[1736981330460,1.60064476,3433.8,3433.7,0.67347885]
[1736981330661,1.60064476,3433.8,3433.7,0.09104885]
[1736981331062,0.58241,3433.8,3433.7,0.09104885]
[1736981331260,1.60064476,3433.8,3433.7,0.09104885]
[1736981331758,0.58243,3433.7,3433.6,45.03164]
[1736981331966,1.49403,3433.7,3433.6,45.1226918]
[1736981333060,1.49403,3433.7,3433.6,44.6812918]
[1736981333860,1.49403,3433.7,3433.6,41.47349183]
[1736981334064,1.49403,3433.7,3433.6,41.38244]
[1736981335658,1.49403,3433.7,3433.6,40.8]
[1736981335960,1.49403,3433.7,3433.6,41.38244]
[1736981336158,1.49403,3433.7,3433.6,41.4734915]
[1736981337659,1.49403,3433.7,3433.6,41.47349135]
[1736981338366,1.49403,3433.7,3433.6,41.47349034]
[1736981339260,1.49403,3433.7,3433.6,41.38244]
[1736981339464,1.49403,3433.7,3433.6,41.47349115]
[1736981341265,1.49403,3433.7,3433.6,41.38244]
[1736981341464,1.49403,3433.7,3433.6,41.47349115]
[1736981341973,1.49403,3433.7,3433.6,40.89105176]
[1736981342163,1.49403,3433.7,3433.6,40.89105235]
[1736981342365,0.58253,3433.1,3433.0,3.79034]
[1736981342561,0.58253,3433.1,3433.0,0.67361771]
[1736981342872,1.60076476,3433.1,3433.0,0.67361771]
[1736981343668,0.58253,3433.1,3433.0,0.67361771]
[1736981343876,0.58253,3433.1,3433.0,0.58255]
[1736981344064,0.58253,3433.1,3432.9,3.6776]
[1736981344271,0.4785,3433.2,3432.9,3.6776]
[1736981344272,1.02655,3433.0,3432.9,4.26015]
[1736981344975,0.06776405,3433.1,3432.9,3.76867034]
[1736981345274,0.65030405,3433.1,3433.0,0.58255]
[1736981346475,0.58254,3433.1,3433.0,0.58255]
[1736981348275,0.58254,3433.1,3433.0,41.38255]